bitfinex/quotes_SOLUSD_20241226
["timestamp","ask_amount","ask_price","bid_price","bid_amount"]
[1735248714052,15.85,189.62,189.58,22.53213418]
[1735248714254,35.85,189.59,189.58,22.53213418]
[1735248715260,35.85,189.59,189.42,19.49428373]
[1735248716149,35.85,189.59,189.43,19.49428373]
[1735248717638,35.85,189.59,189.44,3.62524518]
[1735248717844,35.85,189.59,189.43,19.49428373]
[1735248718469,35.85,189.59,189.44,19.49428373]
[1735248719263,35.85,189.59,189.45,19.49428373]
[1735248719667,15.85,189.61,189.48,19.49428373]
[1735248720171,15.85,189.61,189.49,19.49428373]
[1735248720573,15.85,189.63,189.49,19.49428373]
[1735248721357,35.85,189.6,189.48,6.1992]
[1735248724274,35.85,189.6,189.44,19.49428373]
[1735248724773,35.85,189.6,189.43,25.69348373]
[1735248724947,41.17258164,189.6,189.43,6.1992]
[1735248725150,35.85,189.6,189.43,6.1992]
[1735248725373,20.0,189.52,189.39,25.69348373]
[1735248725558,20.0,189.48,189.39,6.1992]
[1735248725959,20.0,189.48,189.39,25.69348373]
[1735248726463,20.0,189.5,189.39,25.69348373]
[1735248726667,20.0,189.5,189.4,19.49428373]
[1735248727174,35.85,189.5,189.39,6.1992]
[1735248728152,35.85,189.5,189.34,19.49428373]
[1735248728748,35.85,189.5,189.33,7.8456]
[1735248728947,20.0,189.41,189.3,19.49428373]
[1735248729369,20.0,189.41,189.33,19.49428373]
[1735248729584,15.85,189.46,189.29,6.1992]
[1735248729585,20.0,189.43,189.34,19.49428373]
[1735248729875,20.0,189.45,189.34,19.49428373]
[1735248730072,20.0,189.45,189.32,19.49428373]
[1735248730470,20.0,189.45,189.29,6.1992]
[1735248730471,20.0,189.44,189.29,6.1992]
[1735248730674,35.85,189.41,189.29,6.1992]
[1735248731172,35.85,189.41,189.27,19.49428373]
[1735248731353,35.85,189.41,189.26,19.49428373]
[1735248732877,35.85,189.41,189.27,19.49428373]
[1735248733489,20.0,189.34,189.24,25.69348373]
[1735248733863,20.0,189.34,189.25,19.49428373]
[1735248734277,20.0,189.34,189.24,25.69348373]
[1735248734485,35.85,189.34,189.18,6.1992]
[1735248734677,2.3402,189.38,189.22,19.49428373]
[1735248734874,2.3402,189.38,189.21,19.49428373]
[1735248735073,2.3402,189.38,189.22,19.49428373]
[1735248735787,2.3402,189.38,189.23,19.49428373]
[1735248736291,20.0,189.35,189.23,19.49428373]
[1735248736489,20.0,189.35,189.22,19.49428373]
[1735248736790,20.0,189.35,189.21,19.49428373]
[1735248737471,20.0,189.35,189.22,19.49428373]
[1735248737680,20.0,189.35,189.18,6.1992]
[1735248737994,35.85,189.35,189.18,25.69348373]
[1735248738296,35.85,189.35,189.18,6.1992]
[1735248738590,35.85,189.35,189.18,18.41746906]
[1735248738789,15.85,189.37,189.22,12.21826906]
[1735248739085,20.0,189.34,189.2,12.21826906]
[1735248739391,20.0,189.34,189.21,12.21826906]
[1735248739588,2.3402,189.38,189.22,12.21826906]
[1735248740188,2.3402,189.38,189.21,19.54113643]
[1735248740392,2.3402,189.38,189.2,19.54113643]
[1735248741086,20.0,189.31,189.18,6.1992]
[1735248741597,20.0,189.31,189.16,19.54113643]
[1735248742186,20.0,189.31,189.15,19.54113643]
[1735248742761,20.0,189.31,189.16,19.54113643]
[1735248742966,24.1903,189.34,189.2,19.54113643]
[1735248743387,24.1903,189.34,189.14,6.8056]
[1735248743388,20.0,189.32,189.19,19.54113643]
[1735248743865,20.0,189.32,189.19,1.14679021]
[1735248745477,20.0,189.32,189.21,19.54113643]
[1735248746189,20.0,189.32,189.2,19.54113643]
[1735248746393,20.0,189.32,189.19,19.54113643]
[1735248746691,20.0,189.32,189.2,19.54113643]
[1735248748502,20.0,189.32,189.14,6.8056]
[1735248748503,20.0,189.32,189.18,19.54113643]
[1735248748900,20.0,189.31,189.17,19.54113643]
[1735248749077,2.3402,189.3,189.16,19.54113643]
[1735248749398,20.0,189.27,189.16,19.54113643]
[1735248749585,20.0,189.27,189.17,19.54113643]
[1735248750399,20.0,189.23,189.17,19.54113643]
[1735248750696,20.0,189.23,189.16,19.54113643]
[1735248751205,20.0,189.26,189.14,26.34673643]
[1735248751493,4.3554,189.25,189.12,19.54113643]
[1735248751798,20.0,189.22,189.09,26.81353643]
[1735248752299,35.85,189.22,189.08,19.54113643]
[1735248752602,4.3554,189.17,189.05,19.54113643]
[1735248752803,24.3554,189.17,189.06,19.54113643]
[1735248753299,20.0,189.15,189.06,19.54113643]
[1735248753990,6.11485942,189.2,189.04,7.2724]
[1735248754181,4.3554,189.23,189.13,19.54113643]
[1735248754381,4.3554,189.23,189.11,19.54113643]
[1735248755284,20.0,189.22,189.1,19.54113643]
[1735248755502,20.0,189.18,189.04,26.81353643]
[1735248755715,20.0,189.18,189.05,19.54113643]
[1735248756003,20.0,189.18,189.04,26.81353643]
[1735248756379,20.0,189.18,189.04,7.2724]
[1735248756576,20.0,189.14,188.91,8.32912121]
[1735248756886,20.0,189.13,188.97,19.54113643]
[1735248757090,20.0,189.13,188.98,19.54113643]
[1735248757414,35.85,189.13,188.95,19.54113643]
[1735248757696,35.85,189.13,188.98,19.54113643]
[1735248757697,20.0,189.13,188.98,19.54113643]
[1735248757900,20.0,189.13,188.92,0.12549]
[1735248757901,20.0,189.13,188.97,19.54113643]
[1735248758087,20.0,189.13,188.96,19.54113643]
[1735248758780,35.85,189.13,188.96,19.54113643]
[1735248759183,20.0,189.12,189.0,19.54113643]
[1735248759382,20.0,189.14,189.01,19.54113643]
[1735248759993,20.0,189.14,189.0,19.54113643]
[1735248761027,20.0,189.14,188.93,0.12549]
[1735248761190,20.0,189.14,188.98,19.54113643]
[1735248761384,20.0,189.14,189.11,5.02565793]
[1735248761806,20.0,189.14,189.0,19.54113643]
[1735248762085,20.0,189.14,189.01,19.54113643]
[1735248762600,4.504,189.16,189.03,19.54113643]
[1735248762790,4.504,189.16,189.05,19.54113643]
[1735248762993,4.504,189.16,189.04,19.54113643]
[1735248764015,20.0,189.14,189.04,19.54113643]
[1735248764811,20.0,189.14,189.05,46.40754777]
[1735248765001,20.0,189.16,189.06,7.13962273]
[1735248765313,3.97545492,189.28,189.07,7.13962273]
[1735248765606,30.43536863,189.27,189.07,7.13962273]
[1735248765816,15.85,189.26,189.01,8.09808181]
[1735248766316,15.85,189.26,188.99,8.09808181]
[1735248766609,15.85,189.26,189.0,19.54113643]
[1735248766820,15.85,189.24,189.01,19.54113643]
[1735248766996,15.85,189.24,189.0,19.54113643]
[1735248767197,15.85,189.2,189.0,19.54113643]
[1735248767511,15.85,189.16,189.0,19.54113643]
[1735248767691,20.0,189.13,189.0,19.54113643]
[1735248767892,20.0,189.12,189.0,19.54113643]
[1735248769506,20.0,189.12,189.02,19.54113643]
[1735248769800,20.0,189.12,189.01,19.54113643]
[1735248770008,20.0,189.12,189.0,19.54113643]
[1735248771516,20.0,189.12,189.01,19.54113643]
[1735248772901,20.0,189.12,188.99,19.54113643]
[1735248773318,20.0,189.12,188.98,19.54113643]
[1735248774023,20.0,189.12,188.99,19.54113643]
[1735248774922,20.0,189.12,188.98,19.54113643]
[1735248775122,20.0,189.12,188.99,19.54113643]
[1735248775503,20.0,189.12,189.0,19.54113643]
[1735248776411,20.0,189.12,189.0,12.23913516]
[1735248777414,20.0,189.12,188.99,12.23913516]
[1735248778428,20.0,189.12,188.93,8.0199]
[1735248778429,20.0,189.12,188.98,12.23913516]
[1735248778629,20.0,189.12,188.97,12.23913516]
[1735248779422,20.0,189.12,188.98,12.23913516]
[1735248779613,20.0,189.12,188.99,12.23913516]
[1735248781305,20.0,189.12,188.98,12.23913516]
[1735248781812,20.0,189.12,188.99,12.23913516]
[1735248782441,8.3482,189.15,188.95,5.2519]
[1735248782611,8.3482,189.15,189.05,12.23913516]
[1735248782921,4.9659,189.15,189.08,12.23913516]
[1735248783128,8.675,189.19,189.08,12.23913516]
[1735248783314,8.675,189.19,189.07,12.23913516]
[1735248783932,8.675,189.19,189.08,12.23913516]
[1735248784945,8.675,189.19,189.07,12.23913516]
[1735248785244,20.0,189.16,189.07,12.23913516]
[1735248786055,20.0,189.16,189.08,12.23913516]
[1735248787414,20.0,189.16,189.09,12.23913516]
[1735248787632,20.0,189.16,189.1,12.23913516]
[1735248788026,20.0,189.16,189.09,12.23913516]
[1735248788734,0.12902254,189.2,189.12,12.23913516]
[1735248788937,0.12902254,189.2,189.15,12.23913516]
[1735248790438,0.12902254,189.2,189.17,12.23913516]
[1735248791037,0.12902254,189.2,189.18,12.23913516]
[1735248791240,0.12902254,189.2,189.19,12.23913516]
[1735248791737,0.12902254,189.2,189.17,12.23913516]
[1735248792324,0.12902254,189.2,189.18,12.23913516]
[1735248793857,0.12902254,189.2,189.17,12.23913516]
[1735248794923,0.12902254,189.2,189.18,12.23913516]
[1735248795241,0.12902254,189.2,189.19,12.23913516]
[1735248806158,0.12902254,189.2,189.19,24.60376032]
[1735248808954,0.12902254,189.2,189.19,0.12549]
[1735248809260,0.12902254,189.2,189.19,12.23913516]
[1735248809853,0.12902254,189.2,189.18,12.23913516]
[1735248810368,0.12902254,189.2,189.19,12.23913516]
[1735248813763,20.0,189.3,189.19,12.23913516]
[1735248813964,20.0,189.3,189.22,12.23913516]
[1735248814860,20.0,189.3,189.2,12.23913516]
[1735248815058,20.0,189.3,189.18,12.23913516]
[1735248817174,20.0,189.3,189.19,12.23913516]
[1735248817979,20.0,189.3,189.21,12.23913516]
[1735248818346,20.0,189.3,189.22,12.23913516]
[1735248818765,20.0,189.3,189.23,12.23913516]
[1735248820070,20.0,189.3,189.24,12.23913516]
[1735248820280,5.2682,189.33,189.25,12.23913516]
[1735248821485,20.0,189.3,189.25,12.23913516]
[1735248821852,0.12902254,189.36,189.27,12.23913516]
[1735248822061,0.12902254,189.36,189.3,12.23913516]
[1735248822569,0.12902254,189.36,189.31,12.23913516]
[1735248823673,0.12902254,189.36,189.32,12.23913516]
[1735248823984,0.12902254,189.36,189.33,12.23913516]
[1735248825369,0.12902254,189.36,189.34,12.23913516]
[1735248827164,0.12902254,189.36,189.35,12.23913516]
[1735248827855,0.12902254,189.36,189.35,13.03108617]
[1735248828056,0.12902254,189.36,189.35,13.15657617]
[1735248829768,0.12902254,189.36,189.35,12.23913516]
[1735248830876,0.12902254,189.36,189.35,13.15650659]
[1735248840490,5.3951,189.52,189.35,13.15650659]
[1735248840789,5.3951,189.52,189.45,12.23913516]
[1735248841178,5.3951,189.52,189.43,12.23913516]
[1735248841365,5.3951,189.52,189.42,12.23913516]
[1735248841570,5.3951,189.52,189.43,12.23913516]
[1735248842172,5.3951,189.52,189.42,12.23913516]
[1735248842790,20.0,189.49,189.4,12.23913516]
[1735248842970,20.0,189.49,189.38,12.23913516]
[1735248843368,20.0,189.49,189.36,12.23913516]
[1735248843568,20.0,189.45,189.36,12.23913516]
[1735248844782,5.0034,189.48,189.41,12.23913516]
[1735248845089,5.0034,189.48,189.4,12.23913516]
[1735248845291,5.0034,189.48,189.39,0.12549]
[1735248845498,5.0034,189.48,189.39,12.36462516]
[1735248845868,5.0034,189.48,189.4,12.23913516]
[1735248847592,5.0034,189.52,189.42,12.23913516]
[1735248847906,5.0034,189.52,189.43,12.23913516]
[1735248848816,5.0034,189.52,189.45,12.23913516]
[1735248849279,5.0034,189.52,189.44,12.36462516]
[1735248850089,5.0034,189.52,189.38,8.4404]
[1735248850275,5.0034,189.52,189.41,12.23913516]
[1735248850485,5.0034,189.52,189.42,12.23913516]
[1735248850884,5.0034,189.52,189.41,12.23913516]
[1735248851774,5.0034,189.52,189.4,12.23913516]
[1735248851980,20.0,189.49,189.39,12.23913516]
[1735248858201,24.2541,189.49,189.37,0.79178256]
[1735248858405,24.2541,189.49,189.35,12.23913516]
[1735248858611,24.2541,189.49,189.34,20.67953516]
[1735248858806,20.0,189.45,189.34,20.67953516]
[1735248859307,5.5035,189.44,189.29,8.3187]
[1735248859499,20.0,189.41,189.28,12.23913516]
[1735248859883,20.0,189.41,189.3,12.23913516]
[1735248861306,20.0,189.41,189.29,12.23913516]
[1735248861511,20.0,189.41,189.27,12.23913516]
[1735248861701,5.5035,189.42,189.25,12.23913516]
[1735248862284,20.0,189.39,189.25,12.23913516]
[1735248862707,20.0,189.39,189.28,12.23913516]
[1735248863004,20.0,189.39,189.3,12.23913516]
[1735248863195,20.0,189.39,189.31,12.23913516]
[1735248863503,5.5035,189.42,189.32,12.23913516]
[1735248863885,5.5035,189.42,189.33,12.23913516]
[1735248864297,5.5035,189.42,189.29,5.84528785]
[1735248864298,5.5035,189.42,189.34,12.23913516]
[1735248864697,5.5035,189.42,189.35,12.23913516]
[1735248865187,5.5035,189.42,189.36,12.23913516]
[1735248866709,5.5035,189.42,189.37,12.23913516]
[1735248866897,9.7576,189.47,189.37,12.23913516]
[1735248869910,5.5035,189.47,189.4,12.23913516]
[1735248872311,5.5035,189.47,189.39,12.23913516]
[1735248872520,5.5035,189.47,189.36,12.23913516]
[1735248873314,5.5035,189.47,189.37,12.23913516]
[1735248875819,5.5035,189.47,189.38,13.03096963]
[1735248876135,5.5035,189.47,189.39,12.23913516]
[1735248876332,5.5035,189.47,189.4,0.12549]
[1735248878231,9.655,189.52,189.43,12.23913516]
[1735248878433,9.655,189.52,189.44,12.23913516]
[1735248878823,5.4009,189.52,189.46,12.23913516]
[1735248879020,8.24699339,189.53,189.48,12.23913516]
[1735248879921,4.2541,189.56,189.48,12.23913516]
[1735248882319,5.4009,189.57,189.48,12.23913516]
[1735248882511,5.4009,189.57,189.49,12.23913516]
[1735248882694,5.4009,189.57,189.49,13.03046084]
[1735248883322,5.4009,189.57,189.5,12.23913516]
[1735248883912,22.14802717,189.62,189.52,12.23913516]
[1735248884494,13.90103378,189.62,189.52,12.23913516]
[1735248885421,13.90103378,189.62,189.52,13.03031779]
[1735248885915,13.90103378,189.62,189.53,12.23913516]
[1735248887332,13.90103378,189.62,189.51,12.23913516]
[1735248887620,13.90103378,189.62,189.51,13.03035211]
[1735248888521,13.90103378,189.62,189.53,12.23913516]
[1735248888828,13.90103378,189.62,189.55,12.23913516]
[1735248891507,13.90103378,189.62,189.54,12.23913516]
[1735248892125,13.90103378,189.62,189.52,0.12549]
[1735248892126,13.90103378,189.62,189.55,12.23913516]
[1735248893206,13.90103378,189.62,189.54,12.23913516]
[1735248894553,5.4009,189.63,189.56,12.23913516]
[1735248895114,5.4009,189.63,189.54,12.23913516]
[1735248895325,5.4009,189.63,189.53,12.23913516]
[1735248895630,5.4009,189.63,189.54,12.23913516]
[1735248897821,5.4009,189.63,189.55,12.23913516]
[1735248898614,5.4009,189.63,189.56,12.23913516]
[1735248901048,5.4009,189.63,189.55,12.23913516]
[1735248902136,5.4009,189.63,189.55,7.78664778]
[1735248902352,5.4009,189.63,189.5,8.0469]
[1735248902647,5.4009,189.63,189.53,7.78664778]
[1735248903318,5.4009,189.63,189.53,8.5777347]
[1735248903819,5.4009,189.63,189.51,0.79109096]
[1735248904039,5.4009,189.63,189.53,7.78664778]
[1735248904240,5.4009,189.63,189.53,12.16929514]
[1735248904522,20.0,189.6,189.51,12.16929514]
[1735248904837,20.0,189.6,189.5,12.16929514]
[1735248905519,20.0,189.6,189.51,12.16929514]
[1735248905948,20.0,189.6,189.48,5.1642]
[1735248905949,5.4009,189.63,189.56,12.16929514]
[1735248907615,5.4009,189.63,189.57,12.16929514]
[1735248908933,5.4009,189.63,189.56,12.16929514]
[1735248909340,5.4009,189.63,189.55,12.16929514]
[1735248909574,5.4009,189.63,189.53,12.16929514]
[1735248909843,5.4009,189.63,189.52,12.16929514]
[1735248911439,5.4009,189.63,189.49,0.79116079]
[1735248911440,5.4009,189.63,189.51,12.16929514]
[1735248911820,5.4009,189.63,189.52,12.16929514]
[1735248912338,5.4009,189.63,189.51,12.16929514]
[1735248913445,5.4009,189.63,189.5,12.16929514]
[1735248913946,5.4009,189.63,189.51,12.16929514]
[1735248914165,5.4009,189.63,189.54,12.16929514]
[1735248914324,5.4009,189.63,189.55,12.16929514]
[1735248914652,5.4009,189.63,189.56,12.16929514]
[1735248915143,5.4009,189.63,189.57,12.16929514]
[1735248916324,5.4009,189.63,189.55,12.29478514]
[1735248916760,5.4009,189.63,189.56,12.16929514]
[1735248917348,5.4009,189.63,189.57,12.16929514]
[1735248921840,5.4009,189.63,189.56,12.16929514]
[1735248922764,5.4009,189.63,189.53,7.7656]
[1735248923057,5.4009,189.63,189.53,12.16929514]
[1735248923265,5.4009,189.63,189.54,12.16929514]
[1735248924467,5.4009,189.63,189.53,12.16929514]
[1735248925956,5.4009,189.63,189.54,12.16929514]
[1735248926260,5.4009,189.63,189.53,12.16929514]
[1735248928165,5.4009,189.63,189.53,7.78809169]
[1735248928871,5.4009,189.63,189.54,7.78809169]
[1735248930188,1.8563,189.62,189.51,0.79114178]
[1735248930338,20.0,189.6,189.44,8.74716541]
[1735248930669,20.0,189.6,189.48,7.78809169]
[1735248930877,20.0,189.6,189.47,7.78809169]
[1735248931574,20.0,189.58,189.48,7.78809169]
[1735248931936,20.0,189.57,189.48,7.78809169]
[1735248932231,20.0,189.57,189.47,12.17623728]
[1735248932434,4.8809,189.56,189.46,12.17623728]
[1735248932860,4.8809,189.56,189.45,12.17623728]
[1735248933246,20.0,189.55,189.45,12.17623728]
[1735248933867,20.0,189.49,189.29,7.956]
[1735248934158,20.0,189.47,189.3,12.17623728]
[1735248934342,20.0,189.47,189.32,12.17623728]
[1735248934660,20.0,189.47,189.33,12.17623728]
[1735248934857,20.0,189.47,189.32,12.17623728]
[1735248935057,20.0,189.47,189.31,12.17623728]
[1735248935357,20.0,189.47,189.24,0.79207801]
[1735248935358,20.0,189.43,189.25,7.956]
[1735248935547,20.0,189.43,189.26,12.17623728]
[1735248936141,20.0,189.43,189.27,12.17623728]
[1735248936363,20.0,189.41,189.27,12.17623728]
[1735248936549,4.8809,189.4,189.24,12.17623728]
[1735248937361,20.0,189.39,189.24,12.17623728]
[1735248937761,20.0,189.39,189.23,0.79224592]
[1735248937762,20.0,189.39,189.26,12.17623728]
[1735248938065,4.8809,189.4,189.29,12.17623728]
[1735248938241,4.8809,189.4,189.29,12.96837394]
[1735248938954,4.8809,189.4,189.29,12.17623728]
[1735248939269,4.8809,189.4,189.28,12.17623728]
[1735248939840,4.8809,189.4,189.27,12.17623728]
[1735248940047,4.8809,189.4,189.26,12.17623728]
[1735248940861,4.8809,189.4,189.24,12.17623728]
[1735248942982,1.8424,189.39,189.23,0.79229036]
[1735248943273,20.0,189.36,189.18,12.17623728]
[1735248943645,20.0,189.35,189.18,12.17623728]
[1735248943847,20.0,189.35,189.19,12.17623728]
[1735248944687,20.0,189.31,189.19,12.17623728]
[1735248944859,20.0,189.35,189.19,12.17623728]
[1735248945867,20.0,189.31,189.18,12.17623728]
[1735248946874,20.0,189.31,189.17,12.17623728]
[1735248947097,20.0,189.31,189.16,12.17623728]
[1735248947377,20.0,189.31,189.15,12.96879548]
[1735248947868,20.0,189.27,189.15,12.17623728]
[1735248948049,20.0,189.27,189.14,12.17623728]
[1735248948850,20.0,189.27,189.17,12.17623728]
[1735248950356,20.0,189.27,189.16,12.17623728]
[1735248950768,20.0,189.27,189.15,12.96897886]
[1735248953149,20.0,189.27,189.15,12.17623728]
[1735248953353,20.0,189.27,189.14,12.17623728]
[1735248953644,20.0,189.27,189.13,12.17623728]
[1735248953863,1.8424,189.26,189.12,12.17623728]
[1735248954059,20.0,189.22,189.11,12.17623728]
[1735248955668,20.0,189.22,189.12,12.17623728]
[1735248955859,20.0,189.22,189.13,12.17623728]
[1735248957275,20.0,189.22,189.12,12.17623728]
[1735248957577,20.0,189.22,189.11,13.09453947]
[1735248959473,20.0,189.22,189.12,12.17623728]
[1735248960159,5.0315,189.25,189.15,12.17623728]
[1735248960365,5.0315,189.25,189.16,12.17623728]
[1735248960878,5.0315,189.25,189.15,12.17623728]
[1735248961880,5.0315,189.25,189.16,12.17623728]
[1735248962281,5.0315,189.25,189.18,12.17623728]
[1735248962783,5.0315,189.25,189.17,12.96885141]
[1735248963084,5.0315,189.25,189.18,0.12549]
[1735248963676,5.0315,189.25,189.17,0.12549]
[1735248964590,5.0315,189.25,189.18,0.12549]
[1735248965580,5.0315,189.25,189.19,0.12549]
[1735248966682,5.0315,189.25,189.19,12.30172728]
[1735248966868,4.7946,189.29,189.23,12.30172728]
[1735248967063,4.7946,189.29,189.24,12.17623728]
[1735248970591,20.0,189.32,189.26,0.12549]
[1735248970765,4.7946,189.33,189.28,0.12549]
[1735248971600,4.7946,189.33,189.26,12.17623728]
[1735248972615,4.7946,189.33,189.27,0.12549]
[1735248972905,4.7946,189.33,189.27,0.91770405]
[1735248975402,20.0,189.36,189.27,13.09394133]
[1735248975611,4.7067,189.37,189.3,12.30172728]
[1735248975774,4.7067,189.37,189.32,12.17623728]
[1735248976104,4.7067,189.37,189.32,0.12549]
[1735248976309,4.7067,189.42,189.32,0.12549]
[1735248977142,20.0,189.4,189.32,0.12549]
[1735248977905,20.0,189.4,189.32,12.30172728]
[1735248978207,20.0,189.4,189.27,13.0186]
[1735248978208,4.7067,189.42,189.34,12.17623728]
[1735248978386,4.7067,189.42,189.31,12.17623728]
[1735248978705,4.7067,189.42,189.27,13.0186]
[1735248978706,4.7067,189.42,189.33,12.17623728]
[1735248979023,4.7067,189.42,189.33,0.12549]
[1735248984010,4.7067,189.42,189.32,12.17623728]
[1735248984202,20.0,189.41,189.32,12.17623728]
[1735248984397,20.0,189.41,189.28,0.79201468]
[1735248984398,20.0,189.39,189.28,0.79201468]
[1735248984712,0.37451,189.38,189.27,20.99862741]
[1735248984905,20.0,189.39,189.28,12.17623728]
[1735248985217,20.0,189.41,189.35,12.17623728]
[1735248986417,4.6844,189.47,189.38,12.17623728]
[1735248986712,5.05891,189.47,189.37,12.17623728]
[1735248987089,5.05891,189.47,189.35,12.17623728]
[1735248987386,5.05891,189.47,189.34,12.17623728]
[1735248987596,20.0,189.44,189.34,12.17623728]
[1735248987774,0.37451,189.43,189.34,12.17623728]
[1735248988115,0.37451,189.43,189.34,0.12549]
[1735248988316,0.37451,189.43,189.32,12.17623728]
[1735248988524,20.0,189.4,189.28,0.79197113]
[1735248988685,20.37451,189.39,189.3,12.17623728]
[1735248990017,4.6844,189.42,189.3,11.67623728]
[1735248992413,4.6844,189.42,189.31,0.79209119]
[1735248992596,4.6844,189.42,189.32,12.30172728]
[1735248992797,4.6844,189.42,189.33,0.79195708]
[1735248994712,4.6844,189.42,189.33,12.96819436]
[1735248996396,4.6844,189.42,189.34,12.17623728]
[1735248996602,4.7144,189.48,189.37,12.17623728]
[1735248996923,4.7144,189.48,189.39,12.17623728]
[1735248997100,4.7144,189.48,189.4,12.17623728]
[1735248999098,4.7144,189.48,189.41,12.17623728]
[1735249002321,4.7144,189.48,189.4,12.96795197]
[1735249002527,4.7144,189.48,189.38,12.17623728]
[1735249002829,4.7144,189.48,189.39,12.17623728]
[1735249003627,4.7144,189.48,189.4,12.17623728]
[1735249004422,4.7144,189.48,189.39,12.17623728]
[1735249004826,4.7144,189.48,189.38,12.96795622]
[1735249005011,4.7144,189.48,189.39,12.17623728]
[1735249005205,4.7144,189.48,189.39,12.96794864]
[1735249006024,4.7144,189.48,189.39,0.79171136]
[1735249006227,4.7144,189.48,189.38,12.17623728]
[1735249006421,4.7144,189.48,189.31,13.57735721]
[1735249006625,4.7144,189.48,189.35,12.17623728]
[1735249007023,4.7144,189.48,189.36,12.17623728]
[1735249007621,4.7144,189.48,189.37,12.17623728]
[1735249008029,4.7144,189.48,189.38,12.17623728]
[1735249008210,4.7144,189.48,189.39,12.17623728]
[1735249008409,4.7144,189.48,189.4,0.79169108]
[1735249008630,4.7144,189.48,189.39,12.17623728]
[1735249008928,4.7144,189.48,189.4,0.12549]
[1735249009318,4.7144,189.48,189.38,12.17623728]
[1735249009507,4.7144,189.48,189.34,0.79169765]
[1735249009508,4.7144,189.48,189.37,12.17623728]
[1735249010930,20.0,189.45,189.36,12.17623728]
[1735249012025,20.0,189.45,189.37,12.17623728]
[1735249012530,20.0,189.45,189.36,12.96811391]
[1735249013725,20.0,189.45,189.36,0.79187663]
[1735249013946,20.0,189.45,189.33,12.17623728]
[1735249014107,20.0,189.45,189.32,0.79187498]
[1735249014436,20.0,189.45,189.31,20.14003728]
[1735249014437,24.9457,189.44,189.29,12.17623728]
[1735249015035,20.0,189.43,189.29,12.17623728]
[1735249015212,20.0,189.42,189.3,0.79207837]
[1735249015613,20.0,189.42,189.31,12.30172728]
[1735249015823,20.0,189.42,189.32,12.96821628]
[1735249016414,20.0,189.43,189.32,12.96821628]
[1735249016616,20.0,189.43,189.34,12.17623728]
[1735249016918,4.9457,189.44,189.27,7.9638]
[1735249016919,4.9457,189.44,189.36,12.17623728]
[1735249017318,4.9457,189.44,189.36,0.12549]
[1735249018734,24.9457,189.44,189.36,0.12549]
[1735249020532,24.9457,189.44,189.36,12.30172728]
[1735249020718,24.9457,189.44,189.37,0.79184644]
[1735249021733,24.9457,189.44,189.36,0.91732681]
[1735249022338,24.9457,189.44,189.36,13.09356409]
[1735249023741,24.9457,189.44,189.38,0.12549]
[1735249023936,24.9457,189.44,189.38,0.91723236]
[1735249024520,10.11019339,189.47,189.39,12.17623728]
[1735249024728,8.24699339,189.48,189.39,12.17623728]
[1735249024930,8.24699339,189.48,189.4,0.79167132]
[1735249025142,8.24699339,189.48,189.38,12.30172728]
[1735249025440,13.05999339,189.49,189.38,12.30172728]
[1735249026146,8.24699339,189.48,189.39,0.79171301]
[1735249027843,8.24699339,189.47,189.4,12.17623728]
[1735249028141,8.24699339,189.47,189.4,12.96792215]
[1735249028640,8.24699339,189.48,189.4,12.96792215]
[1735249029545,20.0,189.48,189.4,12.96792215]
[1735249030140,20.0,189.48,189.41,0.12549]
[1735249030343,4.813,189.49,189.43,12.17623728]
[1735249030531,8.24699339,189.51,189.44,12.96778256]
[1735249031044,8.24699339,189.52,189.44,12.96778256]
[1735249032147,32.60955957,189.53,189.44,12.96778256]
[1735249032346,13.05999339,189.54,189.43,0.12549]
[1735249032727,8.24699339,189.53,189.43,0.12549]
[1735249033046,8.24699339,189.53,189.44,0.79151371]
[1735249034146,8.24699339,189.53,189.43,0.12549]
[1735249034951,8.24699339,189.53,189.43,0.91703564]
[1735249036648,8.24699339,189.53,189.43,13.09327292]
[1735249036950,8.24699339,189.53,189.44,12.17623728]